bitfinex/quotes_BTCUSD_20251207
["timestamp","ask_amount","ask_price","bid_price","bid_amount"]
[1765150404982,0.00011754,90081.0,90080.0,0.7608647]
[1765150415053,0.00011754,90081.0,90080.0,0.68543072]
[1765150415260,0.00011754,90081.0,90080.0,0.73866072]
[1765150415495,0.00011754,90081.0,90080.0,0.7608647]
[1765150416279,0.00011754,90081.0,90080.0,0.7528647]
[1765150416478,0.00011754,90081.0,90080.0,0.7608647]
[1765150416658,0.00011754,90081.0,90080.0,0.7572647]
[1765150416864,0.00011754,90081.0,90080.0,0.7592647]
[1765150418285,0.00011754,90081.0,90080.0,0.7814847]
[1765150419272,0.00011754,90081.0,90080.0,0.7734847]
[1765150419613,0.00011754,90081.0,90080.0,0.7824847]
[1765150419831,0.00011754,90081.0,90080.0,0.7934847]
[1765150420396,4.62e-06,90081.0,90080.0,0.7934847]
[1765150422753,4.62e-06,90081.0,90080.0,0.7712647]
[1765150423353,4.62e-06,90081.0,90080.0,0.74906072]
[1765150423556,4.62e-06,90081.0,90080.0,0.7602647]
[1765150423758,4.62e-06,90081.0,90080.0,0.7492647]
[1765150423956,4.62e-06,90081.0,90080.0,0.7662647]
[1765150424386,4.62e-06,90081.0,90080.0,0.4432647]
[1765150424994,4.62e-06,90081.0,90080.0,0.4608647]
[1765150425222,4.62e-06,90081.0,90080.0,0.7838647]
[1765150430161,4.62e-06,90081.0,90080.0,0.8088347]
[1765150430369,0.00023945,90091.0,90090.0,0.62972719]
[1765150430582,0.00023945,90091.0,90090.0,0.66462006]
[1765150430846,0.00023945,90091.0,90090.0,0.71699006]
[1765150431745,0.00023945,90091.0,90090.0,0.72499006]
[1765150432088,0.00023945,90091.0,90090.0,0.72799006]
[1765150434387,0.00023945,90091.0,90090.0,0.75599006]
[1765150438329,0.00023945,90091.0,90090.0,0.73378608]
[1765150438535,0.00023945,90091.0,90090.0,0.75599006]
[1765150442133,0.00023945,90091.0,90090.0,0.78336227]
[1765150442348,0.00023945,90091.0,90090.0,0.26261309]
[1765150442589,0.00023945,90091.0,90090.0,0.04061287]
[1765150442796,0.00023945,90091.0,90090.0,0.10313586]
[1765150443276,0.00023945,90091.0,90090.0,0.12533984]
[1765150443481,0.00023945,90091.0,90090.0,0.18515872]
[1765150444527,0.00023945,90091.0,90090.0,0.18513506]
[1765150445502,0.00023945,90091.0,90090.0,0.09879479]
[1765150445503,0.08228945,90091.0,90090.0,0.09879479]
[1765150445705,0.08228945,90091.0,90090.0,0.05086872]
[1765150445931,0.08228945,90091.0,90090.0,0.011]
[1765150446549,0.08228945,90091.0,90090.0,0.003]
[1765150446884,0.08228945,90091.0,90090.0,0.01]
[1765150447203,0.08228945,90091.0,90090.0,0.22500022]
[1765150447397,0.08228945,90091.0,90088.0,0.01110025]
[1765150447602,0.05821,90089.0,90088.0,0.01110025]
[1765150447828,0.05821,90089.0,90087.0,0.02990687]
[1765150448040,0.10607,90089.0,90087.0,0.02990687]
[1765150448250,0.02402,90089.0,90088.0,0.22200515]
[1765150448946,0.04602,90089.0,90088.0,0.22200515]
[1765150449136,0.02402,90089.0,90088.0,0.22200515]
[1765150449586,0.04602,90089.0,90088.0,0.22200515]
[1765150452199,0.022,90089.0,90088.0,0.22200515]
[1765150452357,0.022,90089.0,90088.0,0.32550913]
[1765150453370,0.022,90089.0,90088.0,0.32650913]
[1765150453766,0.00023945,90091.0,90090.0,0.22200022]
[1765150453973,0.00023945,90091.0,90090.0,0.2442042]
[1765150454563,0.00023945,90091.0,90090.0,0.22200022]
[1765150455292,0.02223945,90091.0,90090.0,0.02983498]
[1765150455484,0.02223945,90091.0,90090.0,0.22200022]
[1765150455709,0.02223945,90091.0,90090.0,0.2518352]
[1765150456297,0.02223945,90091.0,90090.0,0.02983498]
[1765150456754,0.02223945,90091.0,90087.0,0.02983498]
[1765150456755,0.01110001,90090.0,90087.0,0.02983498]
[1765150456889,0.22201993,90082.0,90080.0,0.02983498]
[1765150457079,0.22202486,90080.0,90077.0,0.02983498]
[1765150457276,0.22202979,90078.0,90077.0,0.00039226]
[1765150457476,0.25588979,90078.0,90077.0,0.00039226]
[1765150457778,0.30683979,90078.0,90077.0,0.00039226]
[1765150458496,0.32883979,90078.0,90077.0,0.00039226]
[1765150460994,0.10681,90078.0,90077.0,0.00039226]
[1765150461205,0.022,90078.0,90077.0,0.00039226]
[1765150461444,0.022,90078.0,90077.0,0.08330513]
[1765150462009,0.022,90078.0,90077.0,0.1756631]
[1765150462216,0.022,90078.0,90077.0,0.1278431]
[1765150462414,0.022,90078.0,90077.0,0.1348431]
[1765150462840,0.022,90078.0,90077.0,0.1278431]
[1765150463139,0.00023945,90091.0,90088.0,0.01110025]
[1765150463317,0.00023945,90091.0,90089.0,0.22200043]
[1765150464658,0.00423945,90091.0,90089.0,0.22200043]
[1765150469294,0.03386,90090.0,90089.0,0.22200043]
[1765150469497,0.08481,90090.0,90088.0,0.2331054]
[1765150469703,0.03386,90090.0,90088.0,0.2331054]
[1765150470722,0.00023945,90091.0,90090.0,0.22200022]
[1765150472869,0.00023945,90091.0,90090.0,0.2518352]
[1765150473233,0.00423945,90091.0,90090.0,0.2518352]
[1765150475347,0.00423945,90091.0,90090.0,0.22200022]
[1765150477014,0.00423945,90091.0,90090.0,0.25188285]
[1765150477215,0.00423945,90091.0,90090.0,0.22200022]
[1765150481399,0.03809945,90091.0,90088.0,0.01110025]
[1765150481666,0.05015,90089.0,90088.0,0.01110025]
[1765150483029,0.05315,90089.0,90088.0,0.01110025]
[1765150483247,0.09981,90089.0,90088.0,0.01110025]
[1765150484787,0.05315,90089.0,90088.0,0.01110025]
[1765150486385,0.01929,90089.0,90088.0,0.01110025]
[1765150486751,0.09576,90089.0,90085.0,0.05096934]
[1765150486954,0.09576,90089.0,90082.0,0.02988986]
[1765150486955,0.22201747,90083.0,90082.0,0.02988986]
[1765150487161,0.2220224,90081.0,90079.0,0.028]
[1765150487434,0.22202733,90079.0,90078.0,0.02988986]
[1765150487571,0.25183733,90079.0,90077.0,0.00039226]
[1765150487774,0.07647,90078.0,90077.0,0.00039226]
[1765150487962,0.15881145,90078.0,90077.0,0.00039226]
[1765150488566,0.07647,90078.0,90077.0,0.00039226]
[1765150489433,0.08147,90078.0,90077.0,0.00039226]
[1765150500506,0.03481,90078.0,90077.0,0.00039226]
[1765150500717,0.005,90078.0,90077.0,0.31066739]
[1765150501676,0.02407,90095.0,90090.0,0.22200022]
[1765150501896,0.02407,90095.0,90088.0,0.01110025]
[1765150501897,0.02407,90095.0,90088.0,0.23310338]
[1765150502105,0.01110025,90088.0,90085.0,0.01110062]
[1765150502242,0.05496,90086.0,90085.0,0.01110062]
[1765150502443,0.02371,90086.0,90085.0,0.01110062]
[1765150502645,0.00023945,90091.0,90090.0,0.22200022]
[1765150504001,0.00023945,90091.0,90090.0,0.29801022]
[1765150504512,0.00023945,90091.0,90090.0,0.22200022]
[1765150504713,0.00223945,90091.0,90090.0,0.22200022]
[1765150504915,0.00023945,90091.0,90090.0,0.22200022]
[1765150505214,0.00123945,90091.0,90090.0,0.22200022]
[1765150509932,0.00123945,90091.0,90090.0,0.25317022]
[1765150510132,0.00123945,90091.0,90090.0,0.3202142]
[1765150510893,0.00123945,90091.0,90090.0,0.2442042]
[1765150511100,0.00123945,90091.0,90090.0,0.22200022]
[1765150513253,0.00123945,90091.0,90090.0,0.3215142]
[1765150513598,0.00123945,90091.0,90090.0,0.29931022]
[1765150513814,0.00123945,90091.0,90090.0,0.3215142]
[1765150515456,0.00123945,90091.0,90090.0,0.38565006]
[1765150516067,0.00123945,90091.0,90090.0,0.22361309]
[1765150516385,0.07733945,90091.0,90088.0,0.23310436]
[1765150516685,0.31043733,90091.0,90086.0,0.23311057]
[1765150516894,0.04341,90087.0,90086.0,0.23311057]
[1765150517293,0.08973,90087.0,90086.0,0.23311057]
[1765150518007,0.08973,90087.0,90086.0,0.24211057]
[1765150518217,0.08973,90087.0,90086.0,0.23311057]
[1765150518429,0.01110062,90085.0,90081.0,0.03986872]
[1765150518604,0.02978,90082.0,90081.0,0.23312352]
[1765150519422,0.002,90087.0,90086.0,0.22201007]
[1765150519595,0.02472914,90097.0,90088.0,0.01110025]
[1765150519596,0.01363,90097.0,90088.0,0.01110025]
[1765150519988,0.01109742,90111.0,90090.0,0.25254022]
[1765150520191,0.01109742,90111.0,90090.0,0.33888006]
[1765150520419,0.02287,90113.0,90090.0,0.42551878]
[1765150520848,0.02287,90113.0,90090.0,0.38565006]
[1765150521034,0.06919,90113.0,90090.0,0.38565006]
[1765150521251,0.00323945,90091.0,90090.0,0.38565006]
[1765150521423,0.00023945,90091.0,90090.0,0.38565006]
[1765150521772,0.00123945,90091.0,90090.0,0.38565006]
[1765150521975,0.00123945,90091.0,90090.0,0.31667608]
[1765150522197,0.00123945,90091.0,90090.0,0.36344608]
[1765150522336,0.00123945,90091.0,90090.0,0.38565006]
[1765150522971,0.00123945,90091.0,90090.0,0.36344608]
[1765150523637,0.00123945,90091.0,90090.0,0.04140243]
[1765150523841,0.07733945,90091.0,90089.0,0.03978956]
[1765150524064,0.27465268,90089.0,90085.0,0.03978956]
[1765150524283,0.02978,90086.0,90082.0,0.22201759]
[1765150524439,0.02978,90086.0,90077.0,0.00039226]
[1765150524440,0.2220224,90081.0,90079.0,0.03978956]
[1765150524645,0.05265,90078.0,90077.0,0.00039226]
[1765150525202,0.32099979,90078.0,90077.0,0.00039226]
[1765150525538,0.09897,90078.0,90077.0,0.00039226]
[1765150526684,0.05265,90078.0,90077.0,0.00039226]
[1765150527082,0.10197,90078.0,90077.0,0.00039226]
[1765150527866,0.05565,90078.0,90077.0,0.00039226]
[1765150528896,0.10197,90078.0,90077.0,0.00039226]
[1765150529098,0.003,90078.0,90077.0,0.00039226]
[1765150529465,0.003,90078.0,90077.0,0.03027298]
[1765150529700,0.25597318,90089.0,90077.0,0.03027298]
[1765150529701,0.03397013,90089.0,90085.0,0.01110062]
[1765150530073,0.01110025,90088.0,90085.0,0.01110062]
[1765150530271,0.01110025,90088.0,90081.0,0.04539637]
[1765150530272,0.01110062,90085.0,90081.0,0.02988637]
[1765150530513,0.02978,90082.0,90081.0,0.02988637]
[1765150530953,0.0761,90082.0,90081.0,0.02988637]
[1765150531361,0.0761,90082.0,90077.0,0.00439226]
[1765150531362,0.2220224,90081.0,90079.0,0.02988637]
[1765150531569,0.2683424,90081.0,90078.0,0.02988637]
[1765150531779,0.04632,90080.0,90078.0,0.02988637]
[1765150531914,0.05265,90079.0,90078.0,0.02988637]
[1765150532524,0.09897,90079.0,90078.0,0.02988637]
[1765150532727,0.32099733,90079.0,90078.0,0.02988637]
[1765150532934,0.32099733,90079.0,90077.0,0.00039226]
[1765150533142,0.0761,90078.0,90077.0,0.00039226]
[1765150534304,0.0781,90078.0,90077.0,0.00039226]
[1765150535080,0.1603542,90078.0,90077.0,0.00039226]
[1765150535283,0.0781,90078.0,90077.0,0.00039226]
[1765150540231,0.002,90078.0,90077.0,0.00039226]
[1765150540438,0.002,90078.0,90077.0,0.06452812]
[1765150540638,0.03178,90078.0,90077.0,0.00200513]
[1765150540986,0.0781,90078.0,90077.0,0.00200513]
[1765150541212,0.002,90078.0,90077.0,0.22403739]
[1765150542135,0.02287,90079.0,90077.0,0.22403739]
[1765150542324,0.001,90078.0,90077.0,0.23203739]
[1765150542514,0.02287,90079.0,90077.0,0.23203739]
[1765150542915,0.002,90078.0,90077.0,0.24703739]
[1765150543703,0.02287,90079.0,90077.0,0.22403739]
[1765150543903,0.02387,90079.0,90077.0,0.23603739]
[1765150544301,0.02387,90079.0,90077.0,0.24003739]
[1765150545047,0.02287,90079.0,90077.0,0.22803739]
[1765150545389,0.002,90078.0,90077.0,0.25103739]
[1765150545587,0.02287,90079.0,90077.0,0.25103739]
[1765150545588,0.02287,90079.0,90077.0,0.22803739]
[1765150545950,0.02387,90079.0,90077.0,0.24003739]
[1765150546293,0.02287,90079.0,90077.0,0.22803739]
[1765150546543,0.002,90078.0,90077.0,0.25103739]
[1765150547044,0.02287,90079.0,90077.0,0.22803739]
[1765150547257,0.02287,90079.0,90077.0,0.22403739]
[1765150547432,0.02287,90079.0,90077.0,0.23203739]
[1765150547967,0.02287,90079.0,90077.0,0.22403739]
[1765150548191,0.07383,90078.0,90077.0,0.01239226]
[1765150548424,0.07383,90078.0,90077.0,0.01639226]
[1765150549062,0.07383,90078.0,90077.0,0.00039226]
[1765150549284,0.07683,90078.0,90077.0,0.00039226]
[1765150549489,0.08818707,90078.0,90077.0,0.00039226]
[1765150549931,0.11038306,90078.0,90077.0,0.00039226]
[1765150552320,0.12076905,90078.0,90077.0,0.00039226]
[1765150557622,0.08421599,90078.0,90077.0,0.00039226]
[1765150557821,0.09421599,90078.0,90077.0,0.00139226]
[1765150558117,0.11641198,90078.0,90077.0,0.00139226]
[1765150558711,0.11641198,90078.0,90077.0,0.00039226]
[1765150558712,0.10641198,90078.0,90077.0,0.00039226]
[1765150559055,0.11241198,90078.0,90077.0,0.00039226]
[1765150559195,0.19698768,90078.0,90077.0,0.00039226]
[1765150560141,0.19898768,90078.0,90077.0,0.00039226]
[1765150560597,0.19098768,90078.0,90077.0,0.00039226]
[1765150560814,0.19998768,90078.0,90077.0,0.00139226]
[1765150561017,0.19998768,90078.0,90048.0,0.03978956]
[1765150561018,0.22209883,90050.0,90048.0,0.03978956]
[1765150561326,0.05839506,90049.0,90048.0,0.00011754]
[1765150561531,0.10129506,90049.0,90048.0,0.00011754]
[1765150561934,0.2331976,90053.0,90048.0,0.00011754]
[1765150562115,0.23319878,90052.0,90048.0,0.01122272]
[1765150562319,0.03157457,90053.0,90049.0,0.01110506]
[1765150562542,0.22206623,90064.0,90058.0,0.01110395]
[1765150562543,0.03157358,90061.0,90058.0,0.01110395]
[1765150562743,0.01110383,90059.0,90056.0,0.0111042]
[1765150562952,0.03157333,90063.0,90059.0,0.01110383]
[1765150563352,0.01110358,90061.0,90057.0,0.01110407]
[1765150563867,0.03157358,90061.0,90057.0,0.01110407]
[1765150564077,0.0111037,90060.0,90057.0,0.01110407]
[1765150564343,0.001,90059.0,90056.0,0.23479895]
[1765150565339,0.001,90059.0,90056.0,0.01271707]
[1765150565705,0.23317868,90060.0,90056.0,0.01271707]
[1765150566275,0.0111037,90060.0,90056.0,0.01271707]
[1765150566480,0.23317791,90060.0,90056.0,0.01271707]
[1765150566889,0.01110383,90059.0,90056.0,0.01271707]
[1765150568050,0.0540037,90060.0,90057.0,0.01110407]
[1765150568682,0.0429,90060.0,90058.0,0.2220791]
[1765150568877,0.02047,90061.0,90058.0,0.2220791]
[1765150568878,0.02047,90061.0,90058.0,0.23318305]
[1765150569133,0.001,90060.0,90059.0,0.22207663]
[1765150569890,0.002,90060.0,90059.0,0.22207663]
[1765150570312,0.02047,90061.0,90059.0,0.22207663]
[1765150570678,0.001,90060.0,90059.0,0.2236895]
[1765150570880,0.01110198,90074.0,90067.0,0.01110284]
[1765150571084,0.01110222,90072.0,90068.0,0.01110272]
[1765150571319,0.01110235,90071.0,90068.0,0.01110272]
[1765150571631,0.22202321,90081.0,90075.0,0.01110185]
[1765150571842,0.01110124,90080.0,90076.0,0.01110173]
[1765150572191,0.01110173,90076.0,90072.0,0.01110222]
[1765150572400,0.03859173,90076.0,90072.0,0.01110222]
[1765150572604,0.04005,90075.0,90073.0,0.0111021]
[1765150572810,0.01110185,90075.0,90072.0,0.01110222]
[1765150573848,0.01110173,90076.0,90073.0,0.0111021]
[1765150574040,0.04005,90080.0,90073.0,0.0111021]
[1765150574041,0.005,90075.0,90074.0,0.22203965]
[1765150574238,0.005,90075.0,90074.0,0.28617551]
[1765150574445,0.005,90075.0,90074.0,0.41690136]
[1765150574675,0.001,90075.0,90074.0,0.35256738]
[1765150574847,0.001,90075.0,90074.0,0.37477136]
[1765150575063,0.004,90076.0,90075.0,0.08472697]
[1765150575291,0.01110062,90085.0,90081.0,0.23312287]
[1765150575899,0.01110075,90084.0,90081.0,0.01110112]
[1765150576311,0.01110038,90087.0,90083.0,0.01110087]
[1765150576517,0.2551135,90089.0,90085.0,0.01110062]
[1765150576713,0.01110025,90088.0,90083.0,0.01110087]
[1765150577142,0.001,90084.0,90083.0,0.01110087]
[1765150577503,0.0111005,90086.0,90083.0,0.01110087]
[1765150578126,0.01110025,90088.0,90084.0,0.01110075]
[1765150578683,0.01110025,90088.0,90085.0,0.01110062]
[1765150579278,0.02201,90089.0,90085.0,0.23311306]
[1765150579515,0.02201,90089.0,90086.0,0.23310822]
[1765150579724,0.00023945,90091.0,90090.0,0.22200022]
[1765150580192,0.01110001,90090.0,90086.0,0.01271337]
[1765150580362,0.02201,90087.0,90086.0,0.23472344]
[1765150580552,0.00023945,90091.0,90088.0,0.23310467]
[1765150580958,0.00123945,90091.0,90088.0,0.23310467]
[1765150581154,0.00023945,90091.0,90088.0,0.23310467]
[1765150581358,0.23333774,90091.0,90086.0,0.23472213]
[1765150581622,0.00123945,90091.0,90088.0,0.01110025]
[1765150582027,0.00023945,90091.0,90088.0,0.01210025]
[1765150582312,0.23333711,90091.0,90088.0,0.001]
[1765150582477,0.27338711,90091.0,90088.0,0.001]
[1765150583192,0.27338711,90091.0,90086.0,0.01271337]
[1765150583376,0.27338711,90091.0,90086.0,0.23472318]
[1765150583581,0.01110001,90090.0,90086.0,0.02471337]
[1765150583777,0.01110001,90090.0,90086.0,0.01271337]
[1765150584197,0.01110001,90090.0,90088.0,0.001]
[1765150584540,0.01110001,90090.0,90086.0,0.2347234]
[1765150584695,0.001,90090.0,90088.0,0.01110025]
[1765150585109,0.001,90090.0,90089.0,0.35318567]
[1765150585285,0.001,90090.0,90089.0,0.67779854]
[1765150585484,0.001,90090.0,90089.0,0.70000252]
[1765150585685,0.001,90090.0,90089.0,0.67779854]
[1765150585888,0.001,90090.0,90089.0,0.73333587]
[1765150586095,0.001,90090.0,90089.0,0.70000252]
[1765150586568,0.00023945,90091.0,90090.0,0.06252299]
[1765150586781,0.00023945,90091.0,90090.0,0.15499984]
[1765150587584,0.00023945,90091.0,90090.0,0.17203107]
[1765150588035,0.00323945,90091.0,90090.0,0.24287837]
[1765150588400,0.00323945,90091.0,90090.0,0.25287837]
[1765150588896,0.00323945,90091.0,90090.0,0.28257837]
[1765150589098,0.00323945,90091.0,90090.0,0.24273107]
[1765150594650,0.00323945,90091.0,90090.0,0.28257837]
[1765150595019,0.00323945,90091.0,90090.0,0.24273107]
[1765150595223,0.00323945,90091.0,90090.0,0.28257837]
[1765150595450,0.00323945,90091.0,90090.0,0.31591142]
[1765150598137,0.00323945,90091.0,90090.0,0.27606412]
[1765150600318,0.00323945,90091.0,90090.0,0.59906412]
[1765150601440,0.00323945,90091.0,90090.0,0.58203289]
[1765150601600,0.00323945,90091.0,90090.0,0.59906412]
[1765150602599,0.00323945,90091.0,90090.0,0.49116891]
[1765150602785,0.00323945,90091.0,90090.0,0.29431309]
[1765150603604,0.00323945,90091.0,90090.0,0.26461309]
[1765150603803,0.00323945,90091.0,90090.0,0.22361309]
[1765150603804,0.00023945,90091.0,90090.0,0.22361309]
[1765150604033,0.00023945,90091.0,90090.0,0.23261309]
[1765150604241,0.00023945,90091.0,90090.0,0.29810309]
[1765150604411,0.00023945,90091.0,90090.0,0.38283006]
[1765150604615,0.00223945,90091.0,90090.0,0.40983006]
[1765150604833,0.00223945,90091.0,90090.0,0.34414608]
[1765150605703,0.00223945,90091.0,90090.0,0.32213608]
[1765150607062,0.07079945,90091.0,90090.0,0.036]
[1765150610540,0.03027945,90091.0,90090.0,0.036]
[1765150610709,0.00223945,90091.0,90090.0,0.07579473]
[1765150612124,0.00223945,90091.0,90090.0,0.29779495]
[1765150612326,0.00223945,90091.0,90090.0,0.38762608]
[1765150612779,0.00223945,90091.0,90090.0,0.4473791]
[1765150613274,0.00223945,90091.0,90090.0,0.40983006]
[1765150614087,0.00223945,90091.0,90090.0,0.73283006]
[1765150618261,0.00223945,90091.0,90090.0,0.76616196]
[1765150618989,0.00223945,90091.0,90090.0,0.73283006]
[1765150620820,0.00223945,90091.0,90090.0,0.76253006]
[1765150621224,0.00223945,90091.0,90090.0,0.82007015]
[1765150621424,0.00223945,90091.0,90090.0,0.84227413]
[1765150621859,0.00223945,90091.0,90090.0,0.61231309]
[1765150622014,0.06671945,90091.0,90090.0,0.28931309]
[1765150622412,0.06671945,90091.0,90090.0,0.0657]
[1765150622836,0.10208298,90091.0,90090.0,0.07589031]
[1765150623032,0.10208298,90091.0,90090.0,0.036]
[1765150623733,0.06671945,90091.0,90090.0,0.036]
[1765150624307,0.06671945,90091.0,90090.0,0.027]
[1765150624542,0.06771945,90091.0,90090.0,0.027]
[1765150624935,0.06771945,90091.0,90088.0,0.01110025]
[1765150624936,0.02820945,90091.0,90088.0,0.01110025]
[1765150625109,0.00023945,90091.0,90090.0,0.001]
[1765150625501,0.00023945,90091.0,90090.0,0.22300022]
[1765150625696,0.00123945,90091.0,90090.0,0.22300022]
[1765150625883,0.00123945,90091.0,90090.0,0.22200022]
[1765150626087,0.00023945,90091.0,90090.0,0.22200022]
[1765150626265,0.02820945,90091.0,90090.0,0.22700022]
[1765150626465,0.00123945,90091.0,90090.0,0.22700022]
[1765150627499,0.00123945,90091.0,90090.0,0.29424309]
[1765150627661,0.00123945,90091.0,90090.0,0.31644707]
[1765150627862,0.00123945,90091.0,90090.0,0.35633738]
[1765150628088,0.00123945,90091.0,90090.0,0.31543738]
[1765150628419,0.00123945,90091.0,90090.0,0.27554707]
[1765150628898,0.00123945,90091.0,90090.0,0.31644707]
[1765150629460,0.00123945,90091.0,90090.0,0.37897006]
[1765150629682,0.00123945,90091.0,90090.0,0.33807006]
[1765150629884,0.00123945,90091.0,90090.0,0.31334006]
[1765150630586,0.00123945,90091.0,90090.0,0.33807006]
[1765150630920,0.00123945,90091.0,90090.0,0.37897006]
[1765150631098,0.00123945,90091.0,90090.0,0.33807006]
[1765150631327,0.00123945,90091.0,90090.0,0.22861309]
[1765150631535,0.00123945,90091.0,90090.0,0.005]
[1765150631536,0.06571945,90091.0,90090.0,0.005]
[1765150633507,0.00123945,90091.0,90090.0,0.005]
[1765150633849,0.06716945,90091.0,90090.0,0.005]
[1765150634051,0.06693,90091.0,90090.0,0.005]
[1765150635359,0.02805,90091.0,90090.0,0.22700022]
[1765150635659,0.001,90091.0,90090.0,0.22700022]
[1765150638448,0.02805,90091.0,90090.0,0.22700022]
[1765150638664,0.06693,90091.0,90090.0,0.005]
[1765150639355,0.32233193,90091.0,90090.0,0.005]
[1765150640311,0.2891672,90091.0,90090.0,0.005]
[1765150641505,0.31136319,90091.0,90090.0,0.005]
[1765150641917,1.14869585,90091.0,90090.0,0.005]
[1765150642116,0.22206924,90062.0,90060.0,0.03985271]
[1765150642323,0.22207417,90060.0,90057.0,0.03985271]
[1765150642528,0.05159,90061.0,90060.0,0.22207417]
[1765150642728,0.01271,90061.0,90058.0,0.23318305]
[1765150643081,0.02705,90059.0,90057.0,0.01110407]
[1765150643406,0.01271,90061.0,90060.0,0.22207417]
[1765150643793,0.01271,90061.0,90060.0,0.22368704]
[1765150645014,0.01571,90061.0,90060.0,0.25768704]
[1765150646158,0.01571,90061.0,90060.0,0.26668704]
[1765150647456,0.04276,90061.0,90060.0,0.26668704]
[1765150647660,0.08164,90061.0,90060.0,0.26668704]
[1765150648082,0.08164,90061.0,90060.0,0.04461287]
[1765150648337,0.13869689,90061.0,90060.0,0.04461287]
[1765150648554,0.13869689,90061.0,90060.0,0.043]
[1765150648770,0.08164,90061.0,90060.0,0.043]
[1765150649410,0.08164,90061.0,90060.0,0.034]
[1765150649625,0.08264,90061.0,90060.0,0.034]
[1765150650692,0.001,90061.0,90059.0,0.22207645]
[1765150651147,0.002,90061.0,90060.0,0.005]
[1765150651574,0.06693,90061.0,90060.0,0.005]
[1765150651723,0.06593,90061.0,90058.0,0.01110395]
[1765150651918,0.03888,90060.0,90058.0,0.01110395]
[1765150652108,0.04594,90059.0,90058.0,0.01110395]
[1765150652442,0.04594,90059.0,90058.0,0.23318305]
[1765150652641,0.01889,90059.0,90058.0,0.23318305]
[1765150652805,0.002,90061.0,90060.0,0.22207417]
[1765150653006,0.002,90061.0,90060.0,0.22368704]
[1765150653212,0.001,90061.0,90060.0,0.22368704]
[1765150653646,0.001,90061.0,90060.0,0.37588401]
[1765150653836,0.00039188,90062.0,90061.0,0.08472697]
[1765150654048,0.00039188,90062.0,90061.0,0.12885984]
[1765150654550,0.00039188,90062.0,90061.0,0.16925984]
[1765150654847,0.00039188,90062.0,90061.0,0.18062723]
[1765150655050,0.00039188,90062.0,90061.0,0.16925984]
[1765150655427,0.00239188,90062.0,90061.0,0.17925984]
[1765150655953,0.00239188,90062.0,90061.0,0.51929107]
[1765150656184,0.00239188,90062.0,90061.0,0.55914378]
[1765150656315,0.00239188,90062.0,90061.0,0.51929107]
[1765150657155,0.00039188,90062.0,90061.0,0.50929107]
[1765150657528,0.00439188,90062.0,90061.0,0.54729107]
[1765150657934,0.00439188,90062.0,90061.0,0.55729107]
[1765150658133,0.00039188,90062.0,90061.0,0.51929107]
[1765150658342,0.00039188,90062.0,90061.0,0.50929107]
[1765150658541,0.00439188,90062.0,90061.0,0.54729107]
[1765150658747,0.00439188,90062.0,90061.0,0.55829107]
[1765150660248,0.00439188,90062.0,90061.0,0.51789107]
[1765150660506,0.00439188,90062.0,90061.0,0.59512074]
[1765150660629,0.00439188,90062.0,90061.0,0.38906287]
[1765150660832,0.00439188,90062.0,90061.0,0.05061287]
[1765150661448,0.00439188,90062.0,90061.0,0.03961287]
[1765150661781,0.00039188,90062.0,90061.0,0.01061287]
[1765150662152,0.00339188,90062.0,90061.0,0.04061287]
[1765150665809,0.00339188,90062.0,90061.0,0.05331287]
[1765150666783,0.00339188,90062.0,90061.0,0.07793287]
[1765150667188,0.06959188,90062.0,90061.0,0.04061287]
[1765150667597,0.02926188,90062.0,90061.0,0.04061287]
[1765150669183,0.00339188,90062.0,90061.0,0.04061287]
[1765150669319,0.00339188,90062.0,90061.0,0.08039896]
[1765150669520,0.00339188,90062.0,90061.0,0.55214347]
[1765150669820,0.00339188,90062.0,90061.0,0.54078107]
[1765150670023,0.00339188,90062.0,90061.0,0.43883586]
[1765150671160,0.00339188,90062.0,90061.0,0.46345586]
[1765150671342,0.00339188,90062.0,90061.0,0.52374984]
[1765150672256,0.00339188,90062.0,90061.0,0.54078107]
[1765150675096,0.00339188,90062.0,90061.0,0.57048107]
[1765150675447,0.00339188,90062.0,90061.0,0.49315586]
[1765150675800,0.00339188,90062.0,90061.0,0.45639586]
[1765150677033,0.00339188,90062.0,90061.0,0.47859984]
[1765150679721,0.00339188,90062.0,90061.0,0.50252984]
[1765150681354,0.08342188,90062.0,90061.0,0.04061287]
[1765150681563,0.30549112,90062.0,90061.0,0.04061287]
[1765150681765,0.30549112,90062.0,90061.0,0.039]
[1765150682127,0.00339188,90062.0,90061.0,0.2610717]
[1765150682328,0.04539188,90062.0,90061.0,0.039]
[1765150682551,0.08342188,90062.0,90061.0,0.03]
[1765150682965,0.08142188,90062.0,90059.0,0.01110383]
[1765150683144,0.02415,90060.0,90059.0,0.23317809]
[1765150683352,0.06218,90060.0,90059.0,0.23317809]
[1765150684209,0.01824188,90062.0,90059.0,0.23317809]
[1765150684210,0.00139188,90062.0,90061.0,0.2220717]
[1765150684411,0.00139188,90062.0,90061.0,0.28120855]
[1765150684590,0.00139188,90062.0,90061.0,0.31779855]
[1765150685556,0.00039188,90062.0,90061.0,0.31779855]
[1765150685958,0.00039188,90062.0,90061.0,0.28120855]
[1765150686479,0.00139188,90062.0,90061.0,0.28820855]
[1765150686680,0.28564112,90062.0,90061.0,0.007]
[1765150687886,0.06357188,90062.0,90061.0,0.007]
[1765150688332,0.00139188,90062.0,90061.0,0.007]
[1765150688755,0.00139188,90062.0,90061.0,0.2290717]
[1765150690417,0.00139188,90062.0,90061.0,0.24207457]
[1765150692487,0.00139188,90062.0,90061.0,0.00861287]
[1765150692893,0.02657188,90062.0,90061.0,0.00861287]
[1765150693108,0.06320188,90062.0,90061.0,0.00861287]
[1765150694180,0.06320188,90062.0,90061.0,0.007]
[1765150695949,0.06320188,90062.0,90061.0,0.2290717]
[1765150697342,0.06320188,90062.0,90061.0,0.007]
[1765150697663,0.28527112,90062.0,90061.0,0.007]
[1765150698610,0.06320188,90062.0,90061.0,0.007]
[1765150699391,0.02657188,90062.0,90061.0,0.007]
[1765150699938,0.02657188,90062.0,90061.0,0.2290717]
[1765150700622,0.02657188,90062.0,90061.0,0.007]
[1765150700957,0.08104188,90062.0,90061.0,0.007]
[1765150701186,0.30311112,90062.0,90061.0,0.007]
[1765150701755,0.36296535,90062.0,90061.0,0.007]
[1765150705778,0.38516134,90062.0,90061.0,0.007]
[1765150706710,0.01110494,90050.0,90047.0,0.01110531]
[1765150706911,0.05447,90049.0,90047.0,0.01110531]
[1765150707072,0.01110444,90054.0,90051.0,0.01110481]
[1765150707266,0.01110444,90054.0,90047.0,0.01271818]
[1765150707267,0.01110494,90050.0,90047.0,0.00161287]
[1765150707512,0.02518,90048.0,90047.0,0.00161287]
[1765150708312,0.001,90050.0,90048.0,0.22210376]
[1765150708974,0.001,90050.0,90047.0,0.24082233]